[Event "Titled Tuesday Blitz May 10 Late 2022"]
[White "Przybylski, Wojciech"]
[Black "Hardaway, Brewington"]
[WhiteFideId "1117599"]
[BlackFideId "30941849"]
[WhiteElo "2133"]
[BlackElo "1768"]
[Result "0-1"]
[Round "09"]
[TimeControl "180+1"]
[Date "2022.05.11"]
[WhiteClock "0:00:01"]
[BlackClock "0:01:05"]

1. d4 {[%clk 0:02:52]}  Nf6 {[%clk 0:02:58]} 2. c4 {[%clk 0:02:49]}  e6 {[%clk 0:02:57]} 3. Nc3 {[%clk 0:02:47]}  c5 {[%clk 0:02:56]} 4. d5 {[%clk 0:02:44]}  exd5 {[%clk 0:02:56]} 5. cxd5 {[%clk 0:02:44]}  a6 {[%clk 0:02:55]} 6. a4 {[%clk 0:02:42]}  d6 {[%clk 0:02:55]} 7. g3 {[%clk 0:02:41]}  g6 {[%clk 0:02:53]} 8. Bg2 {[%clk 0:02:40]}  Bg7 {[%clk 0:02:54]} 9. Nf3 {[%clk 0:02:39]}  O-O {[%clk 0:02:55]} 10. O-O {[%clk 0:02:39]}  Nbd7 {[%clk 0:02:55]} 11. a5 {[%clk 0:02:37]}  Rb8 {[%clk 0:02:49]} 12. Nd2 {[%clk 0:02:36]}  b5 {[%clk 0:02:38]} 13. e4 {[%clk 0:02:35]}  b4 {[%clk 0:02:38]} 14. Ne2 {[%clk 0:02:34]}  Ne5 {[%clk 0:02:28]} 15. Qc2 {[%clk 0:02:32]}  Bd7 {[%clk 0:02:26]} 16. f4 {[%clk 0:02:31]}  Neg4 {[%clk 0:02:25]} 17. Nc4 {[%clk 0:02:30]}  Bb5 {[%clk 0:02:20]} 18. h3 {[%clk 0:02:28]}  Nh6 {[%clk 0:02:19]} 19. g4 {[%clk 0:02:23]}  Nhxg4 {[%clk 0:02:17]} 20. e5 {[%clk 0:02:13]}  dxe5 {[%clk 0:02:11]} 21. fxe5 {[%clk 0:02:12]}  Nxe5 {[%clk 0:02:03]} 22. Nxe5 {[%clk 0:02:12]}  Nxd5 {[%clk 0:02:02]} 23. Qxc5 {[%clk 0:02:00]}  Bxe5 {[%clk 0:01:58]} 24. Bxd5 {[%clk 0:01:48]}  Bxe2 {[%clk 0:01:47]} 25. Re1 {[%clk 0:01:39]}  Qh4 {[%clk 0:01:43]} 26. Qf2 {[%clk 0:00:57]}  Bg3 {[%clk 0:01:36]} 27. Qxe2 {[%clk 0:00:56]}  Bxe1 {[%clk 0:01:35]} 28. Be3 {[%clk 0:00:52]}  Bg3 {[%clk 0:01:33]} 29. Rf1 {[%clk 0:00:46]}  Rbe8 {[%clk 0:01:31]} 30. Qd2 {[%clk 0:00:20]}  Qxh3 {[%clk 0:01:27]} 31. Bc5 {[%clk 0:00:20]}  Qg4 {[%clk 0:01:12]} 32. Bxf8 {[%clk 0:00:16]}  Bf4+ {[%clk 0:01:11]} 33. Qg2 {[%clk 0:00:15]}  Be3+ {[%clk 0:01:12]} 34. Kh1 {[%clk 0:00:14]}  Qh5+ {[%clk 0:01:11]} 35. Qh2 {[%clk 0:00:10]}  Qxd5+ {[%clk 0:01:11]} 36. Qg2 {[%clk 0:00:10]}  Qxg2+ {[%clk 0:01:11]} 37. Kxg2 {[%clk 0:00:10]}  Kxf8 {[%clk 0:01:11]} 38. Rd1 {[%clk 0:00:08]}  Re5 {[%clk 0:01:11]} 39. Kf3 {[%clk 0:00:07]}  Bg5 {[%clk 0:01:08]} 40. Rd4 {[%clk 0:00:05]}  Be7 {[%clk 0:01:07]} 41. Rc4 {[%clk 0:00:03]}  Rxa5 {[%clk 0:01:07]} 42. Rc8+ {[%clk 0:00:03]}  Kg7 {[%clk 0:01:07]} 43. Ke4 {[%clk 0:00:03]}  f5+ {[%clk 0:01:05]} 44. Kd3 {[%clk 0:00:03]}  Bf6 {[%clk 0:01:06]} 45. Rc7+ {[%clk 0:00:02]}  Kh6 {[%clk 0:01:06]} 46. Rc2 {[%clk 0:00:01]}  Rd5+ {[%clk 0:01:06]} 47. Kc4 {[%clk 0:00:01]}  b3 {[%clk 0:01:05]} 0-1


[Site "https://www.chess.com"]

[Event "Titled Tuesday Blitz May 10 Late 2022"]
[White "Qashashvili, Alexandre"]
[Black "Vujic, Mihailo"]
[WhiteFideId "13600842"]
[BlackFideId "918873"]
[WhiteElo "2316"]
[BlackElo "2256"]
[Result "1/2-1/2"]
[Round "09"]
[TimeControl "180+1"]
[Date "2022.05.11"]
[WhiteClock "0:00:47"]
[BlackClock "0:00:03"]

1. e4 {[%clk 0:03:00]}  e5 {[%clk 0:02:58]} 2. Nc3 {[%clk 0:03:01]}  Nc6 {[%clk 0:02:58]} 3. Nf3 {[%clk 0:03:01]}  Nf6 {[%clk 0:02:58]} 4. d4 {[%clk 0:03:01]}  exd4 {[%clk 0:02:57]} 5. Nxd4 {[%clk 0:03:02]}  Nxe4 {[%clk 0:02:58]} 6. Nxc6 {[%clk 0:02:58]}  Nxc3 {[%clk 0:02:57]} 7. Nxd8 {[%clk 0:02:58]}  Nxd1 {[%clk 0:02:57]} 8. Nxf7 {[%clk 0:02:57]}  Kxf7 {[%clk 0:02:58]} 9. Kxd1 {[%clk 0:02:56]}  d5 {[%clk 0:02:58]} 10. Bd3 {[%clk 0:02:55]}  Bc5 {[%clk 0:02:56]} 11. f3 {[%clk 0:02:55]}  g6 {[%clk 0:02:55]} 12. Bf4 {[%clk 0:02:53]}  c6 {[%clk 0:02:54]} 13. Kd2 {[%clk 0:02:52]}  Bf5 {[%clk 0:02:53]} 14. Bxf5 {[%clk 0:02:49]}  gxf5 {[%clk 0:02:54]} 15. Rae1 {[%clk 0:02:46]}  Rhe8 {[%clk 0:02:51]} 16. Rxe8 {[%clk 0:02:44]}  Rxe8 {[%clk 0:02:50]} 17. Re1 {[%clk 0:02:44]}  Rxe1 {[%clk 0:02:50]} 18. Kxe1 {[%clk 0:02:44]}  Ke6 {[%clk 0:02:47]} 19. Ke2 {[%clk 0:02:43]}  Bd4 {[%clk 0:02:16]} 20. c3 {[%clk 0:02:41]}  Be5 {[%clk 0:02:16]} 21. Bxe5 {[%clk 0:02:38]}  Kxe5 {[%clk 0:02:16]} 22. g3 {[%clk 0:02:39]}  c5 {[%clk 0:01:58]} 23. Kd3 {[%clk 0:02:38]}  b5 {[%clk 0:01:47]} 24. f4+ {[%clk 0:02:35]}  Kd6 {[%clk 0:01:41]} 25. h3 {[%clk 0:02:34]}  h5 {[%clk 0:01:40]} 26. Ke3 {[%clk 0:02:32]}  a5 {[%clk 0:01:38]} 27. Kf3 {[%clk 0:02:28]}  d4 {[%clk 0:01:37]} 28. cxd4 {[%clk 0:02:27]}  cxd4 {[%clk 0:01:38]} 29. Ke2 {[%clk 0:02:07]}  Kc5 {[%clk 0:01:29]} 30. Kd3 {[%clk 0:01:18]}  Kd5 {[%clk 0:01:27]} 31. b3 {[%clk 0:01:18]}  Kc5 {[%clk 0:00:19]} 32. a3 {[%clk 0:01:17]}  b4 {[%clk 0:00:13]} 33. a4 {[%clk 0:01:09]}  Kd5 {[%clk 0:00:12]} 34. h4 {[%clk 0:01:05]}  Kc5 {[%clk 0:00:11]} 35. Ke2 {[%clk 0:01:04]}  Kc6 {[%clk 0:00:09]} 36. Kd2 {[%clk 0:01:02]}  Kd6 {[%clk 0:00:07]} 37. Ke2 {[%clk 0:01:02]}  Kc5 {[%clk 0:00:04]} 38. Kd2 {[%clk 0:01:01]}  Kc6 {[%clk 0:00:04]} 39. Kc2 {[%clk 0:00:57]}  Kc5 {[%clk 0:00:03]} 40. Kd2 {[%clk 0:00:54]}  Kc6 {[%clk 0:00:03]} 41. Kc2 {[%clk 0:00:50]}  Kc5 {[%clk 0:00:03]} 42. Kd2 {[%clk 0:00:47]} 1/2-1/2


[Site "https://www.chess.com"]

[Event "Titled Tuesday Blitz May 10 Late 2022"]
[White "Rorrer, Grayson"]
[Black "Martic, Ivan"]
[WhiteFideId "30944996"]
[BlackFideId "929301"]
[WhiteElo "2122"]
[BlackElo "2317"]
[Result "0-1"]
[Round "09"]
[TimeControl "180+1"]
[Date "2022.05.10"]
[WhiteClock "0:00:01"]
[BlackClock "0:00:03"]

1. e4 {[%clk 0:03:00]}  c5 {[%clk 0:02:59]} 2. Nf3 {[%clk 0:03:01]}  e6 {[%clk 0:02:58]} 3. d4 {[%clk 0:03:00]}  cxd4 {[%clk 0:02:59]} 4. Nxd4 {[%clk 0:03:01]}  a6 {[%clk 0:02:58]} 5. c4 {[%clk 0:03:01]}  Nf6 {[%clk 0:02:57]} 6. Nc3 {[%clk 0:03:02]}  Qc7 {[%clk 0:02:55]} 7. a3 {[%clk 0:03:02]}  d6 {[%clk 0:02:54]} 8. Be2 {[%clk 0:03:02]}  b6 {[%clk 0:02:54]} 9. O-O {[%clk 0:03:02]}  Bb7 {[%clk 0:02:55]} 10. f3 {[%clk 0:03:03]}  Nbd7 {[%clk 0:02:54]} 11. Be3 {[%clk 0:03:03]}  Be7 {[%clk 0:02:54]} 12. Rc1 {[%clk 0:03:04]}  O-O {[%clk 0:02:54]} 13. Qd2 {[%clk 0:03:04]}  Rac8 {[%clk 0:02:54]} 14. Rfd1 {[%clk 0:03:05]}  Rfe8 {[%clk 0:02:49]} 15. b4 {[%clk 0:03:05]}  Qb8 {[%clk 0:02:49]} 16. Nb3 {[%clk 0:03:05]}  Kh8 {[%clk 0:02:29]} 17. Bf4 {[%clk 0:03:04]}  Ne5 {[%clk 0:02:27]} 18. Qd4 {[%clk 0:02:58]}  Nxf3+ {[%clk 0:02:09]} 19. Bxf3 {[%clk 0:02:47]}  e5 {[%clk 0:02:10]} 20. Bxe5 {[%clk 0:02:47]}  dxe5 {[%clk 0:02:08]} 21. Qxb6 {[%clk 0:02:48]}  Rxc4 {[%clk 0:02:05]} 22. Na5 {[%clk 0:02:00]}  Rc7 {[%clk 0:02:03]} 23. Nd5 {[%clk 0:01:39]}  Rxc1 {[%clk 0:01:50]} 24. Rxc1 {[%clk 0:01:40]}  Bxd5 {[%clk 0:01:50]} 25. Qxb8 {[%clk 0:01:41]}  Rxb8 {[%clk 0:01:49]} 26. exd5 {[%clk 0:01:42]}  e4 {[%clk 0:01:49]} 27. Nc6 {[%clk 0:01:40]}  Rc8 {[%clk 0:01:42]} 28. Rd1 {[%clk 0:01:12]}  Bd6 {[%clk 0:01:38]} 29. Be2 {[%clk 0:01:10]}  Ra8 {[%clk 0:01:20]} 30. a4 {[%clk 0:01:09]}  h5 {[%clk 0:01:18]} 31. h3 {[%clk 0:01:05]}  h4 {[%clk 0:01:15]} 32. Kf2 {[%clk 0:01:04]}  Nd7 {[%clk 0:00:50]} 33. Ke3 {[%clk 0:00:57]}  f5 {[%clk 0:00:50]} 34. b5 {[%clk 0:00:36]}  axb5 {[%clk 0:00:49]} 35. axb5 {[%clk 0:00:37]}  Ra3+ {[%clk 0:00:48]} 36. Kd4 {[%clk 0:00:30]}  Bc5+ {[%clk 0:00:35]} 37. Kc4 {[%clk 0:00:29]}  Ra2 {[%clk 0:00:34]} 38. Bf1 {[%clk 0:00:27]}  e3 {[%clk 0:00:31]} 39. Kd3 {[%clk 0:00:17]}  Bb6 {[%clk 0:00:25]} 40. d6 {[%clk 0:00:17]}  f4 {[%clk 0:00:24]} 41. Ke4 {[%clk 0:00:17]}  e2 {[%clk 0:00:23]} 42. Bxe2 {[%clk 0:00:18]}  Rxe2+ {[%clk 0:00:24]} 43. Kxf4 {[%clk 0:00:19]}  Rxg2 {[%clk 0:00:23]} 44. Ne5 {[%clk 0:00:19]}  Rf2+ {[%clk 0:00:20]} 45. Ke4 {[%clk 0:00:17]}  Nf6+ {[%clk 0:00:17]} 46. Kd3 {[%clk 0:00:16]}  Rh2 {[%clk 0:00:17]} 47. d7 {[%clk 0:00:14]}  Rxh3+ {[%clk 0:00:17]} 48. Kc4 {[%clk 0:00:15]}  Re3 {[%clk 0:00:15]} 49. Nf7+ {[%clk 0:00:07]}  Kh7 {[%clk 0:00:13]} 50. Rd6 {[%clk 0:00:06]}  Bc7 {[%clk 0:00:11]} 51. b6 {[%clk 0:00:02]}  Bxb6 {[%clk 0:00:08]} 52. Ng5+ {[%clk 0:00:02]}  Kh8 {[%clk 0:00:07]} 53. Rxb6 {[%clk 0:00:01]}  Nxd7 {[%clk 0:00:07]} 54. Rd6 {[%clk 0:00:02]}  Re7 {[%clk 0:00:06]} 55. Rd5 {[%clk 0:00:02]}  g6 {[%clk 0:00:06]} 56. Rd4 {[%clk 0:00:01]}  Ne5+ {[%clk 0:00:06]} 57. Kc3 {[%clk 0:00:01]}  Kg7 {[%clk 0:00:05]} 58. Rxh4 {[%clk 0:00:02]}  Ra7 {[%clk 0:00:05]} 59. Kc2 {[%clk 0:00:01]}  Ra2+ {[%clk 0:00:05]} 60. Kb3 {[%clk 0:00:02]}  Rg2 {[%clk 0:00:06]} 61. Ne4 {[%clk 0:00:02]}  Re2 {[%clk 0:00:05]} 62. Ng5 {[%clk 0:00:02]}  Re3+ {[%clk 0:00:05]} 63. Kb4 {[%clk 0:00:02]}  Re1 {[%clk 0:00:05]} 64. Kc5 {[%clk 0:00:02]}  Nd3+ {[%clk 0:00:04]} 65. Kd4 {[%clk 0:00:02]}  Nf2 {[%clk 0:00:05]} 66. Rh7+ {[%clk 0:00:01]}  Kf6 {[%clk 0:00:05]} 67. Nf3 {[%clk 0:00:01]}  Re8 {[%clk 0:00:03]} 0-1


[Site "https://www.chess.com"]

[Event "Titled Tuesday Blitz May 10 Late 2022"]
[White "Rosen, Eric"]
[Black "Jakubowski, Krzysztof"]
[WhiteFideId "2032562"]
[BlackFideId "1112848"]
[WhiteElo "2362"]
[BlackElo "2365"]
[Result "1-0"]
[Round "09"]
[TimeControl "180+1"]
[Date "2022.05.10"]
[WhiteClock "0:00:58"]
[BlackClock "0:01:01"]

1. d4 {[%clk 0:02:57]}  Nf6 {[%clk 0:02:58]} 2. Bf4 {[%clk 0:02:58]}  b6 {[%clk 0:02:51]} 3. Nf3 {[%clk 0:02:54]}  Bb7 {[%clk 0:02:51]} 4. c4 {[%clk 0:02:54]}  e6 {[%clk 0:02:48]} 5. e3 {[%clk 0:02:53]}  Bb4+ {[%clk 0:02:46]} 6. Nfd2 {[%clk 0:02:52]}  O-O {[%clk 0:02:44]} 7. a3 {[%clk 0:02:52]}  Be7 {[%clk 0:02:34]} 8. Nc3 {[%clk 0:02:52]}  d5 {[%clk 0:02:33]} 9. cxd5 {[%clk 0:02:47]}  Nxd5 {[%clk 0:02:26]} 10. Nxd5 {[%clk 0:02:43]}  exd5 {[%clk 0:02:24]} 11. Bd3 {[%clk 0:02:40]}  c5 {[%clk 0:02:21]} 12. O-O {[%clk 0:02:26]}  Nd7 {[%clk 0:02:13]} 13. Qf3 {[%clk 0:02:06]}  Nf6 {[%clk 0:02:01]} 14. Rac1 {[%clk 0:02:05]}  Qd7 {[%clk 0:01:55]} 15. Be5 {[%clk 0:02:00]}  Rfd8 {[%clk 0:01:32]} 16. Bf5 {[%clk 0:01:56]}  Qb5 {[%clk 0:01:28]} 17. Rfd1 {[%clk 0:01:11]}  Bc8 {[%clk 0:01:20]} 18. Bb1 {[%clk 0:00:57]}  Bg4 {[%clk 0:01:11]} 19. Qg3 {[%clk 0:00:58]}  Bxd1 {[%clk 0:01:09]} 20. Rxd1 {[%clk 0:00:58]}  Qxb2 {[%clk 0:01:05]} 21. dxc5 {[%clk 0:00:58]}  bxc5 {[%clk 0:01:01]} 22. Bxb2 {[%clk 0:00:58]} 1-0


[Site "https://www.chess.com"]

[Event "Titled Tuesday Blitz May 10 Late 2022"]
[White "Sargsyan, Anna M."]
[Black "Postny, Evgeny"]
[WhiteFideId "13308130"]
[BlackFideId "2804344"]
[WhiteElo "2271"]
[BlackElo "2500"]
[Result "0-1"]
[Round "09"]
[TimeControl "180+1"]
[Date "2022.05.10"]
[WhiteClock "0:00:15"]
[BlackClock "0:01:23"]

1. d4 {[%clk 0:02:59]}  Nf6 {[%clk 0:02:56]} 2. c4 {[%clk 0:03:00]}  e6 {[%clk 0:02:55]} 3. Nf3 {[%clk 0:03:00]}  Bb4+ {[%clk 0:02:55]} 4. Bd2 {[%clk 0:02:59]}  Bxd2+ {[%clk 0:02:55]} 5. Nbxd2 {[%clk 0:02:59]}  d6 {[%clk 0:02:54]} 6. g3 {[%clk 0:03:00]}  O-O {[%clk 0:02:54]} 7. Bg2 {[%clk 0:03:00]}  Qe7 {[%clk 0:02:54]} 8. O-O {[%clk 0:03:01]}  e5 {[%clk 0:02:55]} 9. e3 {[%clk 0:02:47]}  Nc6 {[%clk 0:02:52]} 10. Re1 {[%clk 0:02:43]}  h6 {[%clk 0:02:44]} 11. d5 {[%clk 0:02:31]}  Nb4 {[%clk 0:02:38]} 12. Qb3 {[%clk 0:02:18]}  a5 {[%clk 0:02:37]} 13. a3 {[%clk 0:01:38]}  Na6 {[%clk 0:02:37]} 14. Qc2 {[%clk 0:01:39]}  Bd7 {[%clk 0:02:25]} 15. b3 {[%clk 0:01:37]}  Rab8 {[%clk 0:02:03]} 16. Qc3 {[%clk 0:01:31]}  Nc5 {[%clk 0:01:53]} 17. Qxa5 {[%clk 0:01:25]}  Bf5 {[%clk 0:01:48]} 18. Qc3 {[%clk 0:01:22]}  b5 {[%clk 0:01:45]} 19. b4 {[%clk 0:01:20]}  Nce4 {[%clk 0:01:42]} 20. Nxe4 {[%clk 0:01:19]}  Nxe4 {[%clk 0:01:42]} 21. Qc1 {[%clk 0:01:17]}  Qf6 {[%clk 0:01:33]} 22. cxb5 {[%clk 0:01:11]}  Bg4 {[%clk 0:01:32]} 23. Nh4 {[%clk 0:00:20]}  Qxf2+ {[%clk 0:01:32]} 24. Kh1 {[%clk 0:00:20]}  Nxg3+ {[%clk 0:01:33]} 25. hxg3 {[%clk 0:00:21]}  Qxg3 {[%clk 0:01:34]} 26. e4 {[%clk 0:00:17]}  Qxh4+ {[%clk 0:01:33]} 27. Kg1 {[%clk 0:00:17]}  f5 {[%clk 0:01:27]} 28. Qxc7 {[%clk 0:00:15]}  f4 {[%clk 0:01:23]} 0-1


[Site "https://www.chess.com"]

[Event "Titled Tuesday Blitz May 10 Late 2022"]
[White "Shimanov, Aleksandr"]
[Black "Skliarov, Viktor"]
[WhiteFideId "4198603"]
[BlackFideId "14106736"]
[WhiteElo "2605"]
[BlackElo "2229"]
[Result "1-0"]
[Round "09"]
[TimeControl "180+1"]
[Date "2022.05.10"]
[WhiteClock "0:01:24"]
[BlackClock "0:00:38"]

1. e4 {[%clk 0:03:00]}  c5 {[%clk 0:02:59]} 2. Nf3 {[%clk 0:02:59]}  Nc6 {[%clk 0:02:59]} 3. Bc4 {[%clk 0:02:58]}  g6 {[%clk 0:02:57]} 4. O-O {[%clk 0:02:54]}  Bg7 {[%clk 0:02:57]} 5. c3 {[%clk 0:02:54]}  Nf6 {[%clk 0:02:55]} 6. e5 {[%clk 0:02:53]}  Ng4 {[%clk 0:02:55]} 7. d4 {[%clk 0:02:53]}  cxd4 {[%clk 0:02:50]} 8. cxd4 {[%clk 0:02:52]}  O-O {[%clk 0:02:43]} 9. h3 {[%clk 0:02:33]}  Nh6 {[%clk 0:02:43]} 10. d5 {[%clk 0:02:33]}  Nb8 {[%clk 0:02:05]} 11. Nc3 {[%clk 0:02:29]}  a6 {[%clk 0:02:04]} 12. a4 {[%clk 0:02:28]}  d6 {[%clk 0:02:04]} 13. e6 {[%clk 0:02:28]}  fxe6 {[%clk 0:01:57]} 14. dxe6 {[%clk 0:02:29]}  Nc6 {[%clk 0:01:58]} 15. Re1 {[%clk 0:02:27]}  Nf5 {[%clk 0:01:51]} 16. Nd5 {[%clk 0:02:19]}  b6 {[%clk 0:01:39]} 17. Ra3 {[%clk 0:02:13]}  Bb7 {[%clk 0:01:33]} 18. Rd3 {[%clk 0:01:55]}  Na5 {[%clk 0:01:22]} 19. Ba2 {[%clk 0:01:54]}  b5 {[%clk 0:01:22]} 20. g4 {[%clk 0:01:47]}  Nh6 {[%clk 0:01:20]} 21. Bg5 {[%clk 0:01:46]}  Bxd5 {[%clk 0:00:40]} 22. Bxd5 {[%clk 0:01:47]}  Kh8 {[%clk 0:00:40]} 23. Bxa8 {[%clk 0:01:45]}  Qxa8 {[%clk 0:00:41]} 24. Bxe7 {[%clk 0:01:46]}  Re8 {[%clk 0:00:38]} 25. Rxd6 {[%clk 0:01:24]} 1-0


[Site "https://www.chess.com"]

[Event "Titled Tuesday Blitz May 10 Late 2022"]
[White "Stanisz, Patryk"]
[Black "Remolar Gallen, Jose"]
[WhiteFideId "1123106"]
[BlackFideId "2215187"]
[WhiteElo "1833"]
[BlackElo "2205"]
[Result "0-1"]
[Round "09"]
[TimeControl "180+1"]
[Date "2022.05.11"]
[WhiteClock "0:00:01"]
[BlackClock "0:00:05"]

1. Nf3 {[%clk 0:03:00]}  Nf6 {[%clk 0:02:56]} 2. d4 {[%clk 0:03:00]}  g6 {[%clk 0:02:51]} 3. g3 {[%clk 0:02:58]}  Bg7 {[%clk 0:02:52]} 4. Bg2 {[%clk 0:02:58]}  O-O {[%clk 0:02:53]} 5. O-O {[%clk 0:02:58]}  d6 {[%clk 0:02:52]} 6. b3 {[%clk 0:02:59]}  a5 {[%clk 0:02:51]} 7. a4 {[%clk 0:02:58]}  Nc6 {[%clk 0:02:31]} 8. Bb2 {[%clk 0:02:56]}  Bf5 {[%clk 0:02:32]} 9. Nbd2 {[%clk 0:02:51]}  Ne4 {[%clk 0:02:25]} 10. e3 {[%clk 0:02:46]}  Nxd2 {[%clk 0:02:22]} 11. Qxd2 {[%clk 0:02:45]}  Be4 {[%clk 0:02:20]} 12. Rfe1 {[%clk 0:02:33]}  d5 {[%clk 0:02:05]} 13. Ba3 {[%clk 0:02:27]}  Re8 {[%clk 0:02:02]} 14. Nh4 {[%clk 0:02:23]}  Bxg2 {[%clk 0:02:02]} 15. Nxg2 {[%clk 0:02:24]}  e5 {[%clk 0:02:00]} 16. dxe5 {[%clk 0:02:24]}  Nxe5 {[%clk 0:02:01]} 17. Qe2 {[%clk 0:02:19]}  Qf6 {[%clk 0:01:42]} 18. f4 {[%clk 0:02:12]}  Nc6 {[%clk 0:01:36]} 19. Rad1 {[%clk 0:02:08]}  Rad8 {[%clk 0:01:36]} 20. Qb5 {[%clk 0:01:55]}  Qe6 {[%clk 0:00:55]} 21. Qxb7 {[%clk 0:01:36]}  Bc3 {[%clk 0:00:47]} 22. Rf1 {[%clk 0:01:23]}  d4 {[%clk 0:00:31]} 23. exd4 {[%clk 0:01:11]}  Nxd4 {[%clk 0:00:32]} 24. Kh1 {[%clk 0:00:47]}  Ne2 {[%clk 0:00:22]} 25. Bc5 {[%clk 0:00:36]}  Rxd1 {[%clk 0:00:12]} 26. Rxd1 {[%clk 0:00:37]}  Qg4 {[%clk 0:00:12]} 27. Qd5 {[%clk 0:00:23]}  Bd4 {[%clk 0:00:07]} 28. Rxd4 {[%clk 0:00:02]}  Nxd4 {[%clk 0:00:06]} 29. Qxd4 {[%clk 0:00:02]}  Qf3 {[%clk 0:00:05]} 30. Qd1 {[%clk 0:00:01]}  Re2 {[%clk 0:00:05]} 0-1


[Site "https://www.chess.com"]

[Event "Titled Tuesday Blitz May 10 Late 2022"]
[White "Stoleriu, George"]
[Black "Petrovskyi, Vadym"]
[WhiteFideId "1227505"]
[BlackFideId "14165210"]
[WhiteElo "2194"]
[BlackElo "2400"]
[Result "0-1"]
[Round "09"]
[TimeControl "180+1"]
[Date "2022.05.10"]
[WhiteClock "0:00:08"]
[BlackClock "0:00:33"]

1. e4 {[%clk 0:02:52]}  c5 {[%clk 0:02:52]} 2. Nf3 {[%clk 0:02:48]}  d6 {[%clk 0:02:49]} 3. Bb5+ {[%clk 0:02:47]}  Bd7 {[%clk 0:02:47]} 4. c4 {[%clk 0:02:46]}  e5 {[%clk 0:02:37]} 5. Nc3 {[%clk 0:02:23]}  Be7 {[%clk 0:02:35]} 6. O-O {[%clk 0:02:21]}  Nf6 {[%clk 0:02:33]} 7. d3 {[%clk 0:02:08]}  O-O {[%clk 0:02:30]} 8. a3 {[%clk 0:01:59]}  Nc6 {[%clk 0:02:26]} 9. Bxc6 {[%clk 0:01:54]}  Bxc6 {[%clk 0:02:27]} 10. b4 {[%clk 0:01:55]}  b6 {[%clk 0:02:26]} 11. h3 {[%clk 0:01:52]}  Ne8 {[%clk 0:02:21]} 12. Nd5 {[%clk 0:01:50]}  Bxd5 {[%clk 0:02:20]} 13. cxd5 {[%clk 0:01:51]}  f5 {[%clk 0:02:19]} 14. Nd2 {[%clk 0:01:49]}  Nc7 {[%clk 0:02:05]} 15. Bb2 {[%clk 0:01:40]}  fxe4 {[%clk 0:01:52]} 16. dxe4 {[%clk 0:01:39]}  Nb5 {[%clk 0:01:49]} 17. Nc4 {[%clk 0:01:21]}  Nd4 {[%clk 0:01:44]} 18. Bxd4 {[%clk 0:01:19]}  exd4 {[%clk 0:01:45]} 19. b5 {[%clk 0:01:17]}  Rf4 {[%clk 0:01:38]} 20. Qd3 {[%clk 0:01:13]}  Qe8 {[%clk 0:01:31]} 21. Rae1 {[%clk 0:01:12]}  Qxb5 {[%clk 0:01:26]} 22. e5 {[%clk 0:01:03]}  dxe5 {[%clk 0:01:15]} 23. Rxe5 {[%clk 0:01:04]}  Qd7 {[%clk 0:01:11]} 24. d6 {[%clk 0:00:52]}  Bxd6 {[%clk 0:01:06]} 25. Rd5 {[%clk 0:00:52]}  Rf6 {[%clk 0:01:04]} 26. Kh1 {[%clk 0:00:38]}  Qc6 {[%clk 0:00:56]} 27. Rh5 {[%clk 0:00:32]}  g6 {[%clk 0:00:55]} 28. Rh4 {[%clk 0:00:29]}  Raf8 {[%clk 0:00:54]} 29. Rg4 {[%clk 0:00:23]}  Bc7 {[%clk 0:00:52]} 30. f3 {[%clk 0:00:21]}  b5 {[%clk 0:00:53]} 31. Nd2 {[%clk 0:00:20]}  a6 {[%clk 0:00:47]} 32. Ne4 {[%clk 0:00:20]}  Rf4 {[%clk 0:00:46]} 33. Rg5 {[%clk 0:00:20]}  R4f5 {[%clk 0:00:43]} 34. Rg4 {[%clk 0:00:17]}  Qd5 {[%clk 0:00:43]} 35. Rc1 {[%clk 0:00:17]}  c4 {[%clk 0:00:43]} 36. Qd2 {[%clk 0:00:16]}  d3 {[%clk 0:00:43]} 37. Qh6 {[%clk 0:00:14]}  Qf7 {[%clk 0:00:40]} 38. Re1 {[%clk 0:00:13]}  Bf4 {[%clk 0:00:40]} 39. Qh4 {[%clk 0:00:12]}  d2 {[%clk 0:00:39]} 40. Rd1 {[%clk 0:00:12]}  h5 {[%clk 0:00:32]} 41. Rxf4 {[%clk 0:00:07]}  Rxf4 {[%clk 0:00:33]} 42. Qf2 {[%clk 0:00:08]}  Rxe4 {[%clk 0:00:33]} 0-1


[Site "https://www.chess.com"]

[Event "Titled Tuesday Blitz May 10 Late 2022"]
[White "Stremavicius, Titas"]
[Black "Rustemov, Alexander"]
[WhiteFideId "12804444"]
[BlackFideId "4119002"]
[WhiteElo "2404"]
[BlackElo "2751"]
[Result "0-1"]
[Round "09"]
[TimeControl "180+1"]
[Date "2022.05.10"]
[WhiteClock "0:00:03"]
[BlackClock "0:00:30"]

1. f4 {[%clk 0:02:59]}  d5 {[%clk 0:02:59]} 2. Nf3 {[%clk 0:02:59]}  Nf6 {[%clk 0:02:59]} 3. g3 {[%clk 0:02:59]}  g6 {[%clk 0:03:00]} 4. Bg2 {[%clk 0:03:00]}  Bg7 {[%clk 0:03:00]} 5. O-O {[%clk 0:03:01]}  O-O {[%clk 0:03:00]} 6. d3 {[%clk 0:03:01]}  c5 {[%clk 0:03:00]} 7. Qe1 {[%clk 0:03:01]}  Nc6 {[%clk 0:03:00]} 8. e4 {[%clk 0:03:02]}  dxe4 {[%clk 0:02:09]} 9. dxe4 {[%clk 0:03:02]}  Nd4 {[%clk 0:02:09]} 10. e5 {[%clk 0:02:30]}  Nxc2 {[%clk 0:02:05]} 11. Qf2 {[%clk 0:02:29]}  Nxa1 {[%clk 0:02:05]} 12. exf6 {[%clk 0:02:30]}  Bxf6 {[%clk 0:02:05]} 13. Be3 {[%clk 0:02:28]}  Bf5 {[%clk 0:01:52]} 14. Na3 {[%clk 0:02:27]}  Qd3 {[%clk 0:01:42]} 15. Rxa1 {[%clk 0:02:08]}  Bxb2 {[%clk 0:01:42]} 16. Qxb2 {[%clk 0:02:06]}  Qxe3+ {[%clk 0:01:41]} 17. Kh1 {[%clk 0:02:06]}  Rad8 {[%clk 0:01:19]} 18. Re1 {[%clk 0:01:55]}  Qd3 {[%clk 0:01:18]} 19. g4 {[%clk 0:01:12]}  Bxg4 {[%clk 0:01:15]} 20. Ne5 {[%clk 0:01:11]}  Qf5 {[%clk 0:01:06]} 21. Qxb7 {[%clk 0:01:08]}  Qxf4 {[%clk 0:01:01]} 22. Nc6 {[%clk 0:01:08]}  Qf2 {[%clk 0:00:54]} 23. Rf1 {[%clk 0:00:47]}  Rd1 {[%clk 0:00:54]} 24. Nxe7+ {[%clk 0:00:45]}  Kg7 {[%clk 0:00:53]} 25. Rxd1 {[%clk 0:00:45]}  Bxd1 {[%clk 0:00:51]} 26. Qe4 {[%clk 0:00:39]}  Rd8 {[%clk 0:00:40]} 27. h3 {[%clk 0:00:28]}  Rd2 {[%clk 0:00:35]} 28. Nc4 {[%clk 0:00:24]}  Re2 {[%clk 0:00:30]} 29. Qe3 {[%clk 0:00:03]}  Rxe3 {[%clk 0:00:30]} 0-1


[Site "https://www.chess.com"]